Cogmind - Beta 10.2 @@@ ROGUE MODE // 2020.11.07 @ 10:38:05 Player: slanderous_mambo Result: Destroyed by G-34 Mercenary with Small Laser Performance ------------- Evolutions (1) 500 Regions Visited (2) 400 Robots Destroyed (25) 125 Value Destroyed (751) 751 Prototype IDs (1) 20 Alien Tech Used (0) 0 Bonus (0) 0 TOTAL SCORE: 1796 Bonus ------- None Cogmind --------- Core Integrity 0/400 Matter 150/300 Energy 100/100 System Corruption 2% Temperature Cool (6) Movement Core (300) Ox5 Location -9/Materials Parts ------- > --- POWER (2) -------- (None) > --- PROPULSION (2) --- (None) > --- UTILITY (3) ------ Improved Heat Sink Large Storage Unit Armor Integrity Analyzer > --- WEAPON (2) ------- (None) > --- INVENTORY (10) --- Large Matter Pod (90) Improved Signal Interpreter Improved Signal Interpreter Peak State ------------ > --- POWER ------------ Ion Engine Light Nuclear Core > --- PROPULSION ------- Improved Aluminum Leg Improved Aluminum Leg > --- UTILITY ---------- Large Storage Unit Armor Integrity Analyzer Light Armor Plating > --- WEAPON ----------- EM Pulse Gun Improved Assault Rifle > --- INVENTORY -------- Ion Engine Improved Heat Sink Improved Heat Sink Large Matter Pod Structural Scanner Improved Signal Interpreter Small Laser Light Cannon Grenade Launcher [Rating: 17] Favorites ----------- Power Light Nuclear Core Engine Ion Engine Power Core Light Nuclear Core Propulsion Improved Aluminum Leg Leg Improved Aluminum Leg Utility Armor Integrity Analyzer Device Improved Heat Sink Storage Large Storage Unit Processor Armor Integrity Analyzer Protection Light Armor Plating Weapon Light Cannon Energy Gun Medium Laser Energy Cannon Particle Cannon Ballistic Gun Light Assault Rifle Ballistic Cannon Light Cannon Launcher Grenade Launcher Build | -11 -10 -9 ------- Run | Scr Mat Mat Slots Evolved 2 | . . 2 Power 1 | . . 1 Propulsion . | . . . Utility 1 | . . 1 Weapon . | . . . Parts Attached 35 | 7 12 16 Power 6 | 1 1 4 Engine 4 | 1 . 3 Core 2 | . 1 1 Reactor . | . . . Propulsion 6 | 2 3 1 Treads . | . . . Leg 6 | 2 3 1 Wheel . | . . . Hover . | . . . Flight . | . . . Utility 6 | 1 3 2 Device 2 | . 1 1 Storage 2 | 1 1 . Processor 1 | . 1 . Hackware . | . . . Protection 1 | . . 1 Artifact . | . . . Weapon 17 | 3 5 9 Energy Gun 7 | 1 3 3 Energy Cannon 1 | . . 1 Ballistic Gun 5 | 2 . 3 Ballistic Cannon 3 | . 2 1 Launcher 1 | . . 1 Special Weapon . | . . . Impact Weapon . | . . . Slashing Weapon . | . . . Piercing Weapon . | . . . Special Melee Weapon . | . . . Unidentified Prototypes 1 | . . 1 Parts Lost 15 | . 2 13 Power 3 | . . 3 Propulsion 2 | . . 2 Utility 1 | . . 1 Weapon 9 | . 2 7 Highest Loss Streak 13 | . 1 13 Average Slot Usage (%) 95 | . 97 85 Engine 3 | . 1 9 Core 11 | . 12 7 Leg 25 | . 28 16 Device 1 | . 1 2 Storage 13 | . 14 11 Processor 10 | . 10 11 Protection 1 | . . 8 Energy Gun 13 | . 16 2 Ballistic Gun 3 | . 2 7 Ballistic Cannon 9 | . 9 8 Naked Turns . | . . . Heaviest Build 35 | 9 26 35 Greatest Support 26 | 20 26 26 Greatest Overweight (x) 6 | 2 . 6 Average Overweight (x) . | . . 1 Largest Inventory Capacity 10 | 6 10 10 Average Capacity 8 | 5 7 10 Most Carried 10 | 2 10 10 Average Carried 6 | 1 6 8 Final Capacity 10 | 6 10 10 Final Carried 10 | 2 10 3 Class Distribution -------------------- 100% | Mutant Dominant Class ---------------- Mutant | -10/Materials Mutant | -9/Materials Resources | -11 -10 -9 ----------- Run | Scr Mat Mat Matter Collected 722 | 213 397 112 Remotely . | . . . Salvage Created 940 | . 616 324 Parts 44 | . 26 18 Haulers Intercepted . | . . . Recyclers Shooed . | . . . Parts Field Recycled . | . . . Retrieved Matter . | . . . Parts Self-Destructed . | . . . Prevented . | . . . Kills | -11 -10 -9 ------- Run | Scr Mat Mat Combat Hostiles Destroyed 20 | . 12 8 Guns 9 | . 6 3 Cannons 11 | . 6 5 Classes Destroyed 6 | . 4 2 Worker 1 | . . 1 Recycler 3 | . 2 1 Watcher 1 | . 1 . Swarmer 1 | . 1 . Grunt 18 | . 11 7 Sentry 1 | . . 1 Best Kill Streak 5 | . 5 5 Combat Bots Only 4 | . 4 3 Max Kills in Single Turn 1 | . 1 1 Gunslinging . | . . . Exploded . | . . . Melee . | . . . Uniques/NPCs Destroyed . | . . . Combat | -11 -10 -9 -------- Run | Scr Mat Mat Damage Taken 2016 | . 610 1406 Core 502 | . 101 401 Absorbed by Shields . | . . . Core Remaining (%) 79 | 100 59 . Volleys Fired 84 | . 53 31 Largest 2 | . 2 2 Hottest 124 | . 90 124 Shots Fired 153 | . 99 54 Gun 100 | . 73 27 Cannon 50 | . 26 24 Launcher 3 | . . 3 Special . | . . . Kinetic 101 | . 62 39 Thermal 41 | . 31 10 Explosive 3 | . . 3 Electromagnetic 8 | . 6 2 Robot Hit Streak 13 | . 13 10 Robot Miss Streak 3 | . 3 3 Penetration Max . | . . . Secondary Targets 1 | . 1 . Max Gunslinging Chain 1 | . 1 . Shots Hit Robots 100 | . 67 33 Core Hits 47 | . 28 19 Critical Hits 2 | . 2 . Critical Kills 1 | . 1 . Critical Parts Destroyed 1 | . 1 . Melee Attacks . | . . . Impact . | . . . Slashing . | . . . Piercing . | . . . Sneak Attacks . | . . . Combat Hostiles . | . . . Follow-up Attacks . | . . . Damage Inflicted 1567 | . 690 877 Guns 749 | . 464 285 Cannons 547 | . 226 321 Explosions 271 | . . 271 Melee . | . . . Ramming . | . . . Kinetic 865 | . 443 422 Thermal 352 | . 196 156 Explosive 271 | . . 271 Electromagnetic 79 | . 51 28 Impact . | . . . Slashing . | . . . Piercing . | . . . Highest Corruption 2 | . 2 2 Average Corruption 1 | . 1 2 Corruption Purged . | . . . Effects 3 | . 1 2 Message Errors 1 | . . 1 Weapon Failures 2 | . 1 1 Overload Shots . | . . . Overflow Damage 2 | . . 2 Projectiles . | . . . Explosions 2 | . . 2 Melee . | . . . Knockbacks 3 | . . 3 Impact . | . . . Kinetic 2 | . . 2 Secondary 1 | . . 1 Self-Inflicted Damage . | . . . Shots . | . . . Rammed . | . . . Targets Rammed . | . . . Kicked . | . . . Crushed . | . . . Highest Temperature 338 | . 338 312 Average Temperature 114 | . 91 144 Received Heat Transfer 1107 | . 336 771 Effects 5 | . 1 4 Energy Bleed 1 | . 1 . Interference 4 | . . 4 Siege Activations . | . . . Robots Corrupted . | . . . Combat Hostiles . | . . . Parts Fried . | . . . Impact Corruptions . | . . . Robots Melted . | . . . Combat Hostiles . | . . . Parts Melted 2 | . 2 . Heat Transferred 889 | . 556 333 Parts Sabotaged . | . . . Parts Stolen . | . . . Parts Stripped . | . . . Power Chain Reactions . | . . . Missiles Intercepted . | . . . Alert | -11 -10 -9 ------- Run | Scr Mat Mat Peak Influence 191 | . 191 145 Initial 20 | . . 20 Average 77 | . 82 78 Maximum Alert Level . | . . . Low Security (%) 100 | 100 100 100 Level 1 . | . . . Level 2 . | . . . Level 3 . | . . . Level 4 . | . . . Level 5 . | . . . High Security . | . . . Max Security . | . . . Squads Dispatched 5 | . 4 1 Investigation 3 | . 3 . Extermination . | . . . Reinforcement 2 | . 1 1 Assault . | . . . Garrison . | . . . Intercept . | . . . Construction Impeded 1 | . . 1 Haulers Reinforced . | . . . Stealth | -11 -10 -9 --------- Run | Scr Mat Mat Distress Signals 1 | . . 1 Communications Jammed . | . . . Distress Signals . | . . . Times Spotted 29 | . 14 15 Peak Tracking Total 8 | . 4 8 Tactical Retreats 2 | . 1 1 Traps | -11 -10 -9 ------- Run | Scr Mat Mat Traps Triggered 7 | . 4 3 Indirectly . | . . . Trap Hack Attempts . | . . . Triggered . | . . . Disarmed . | . . . Reprogrammed . | . . . Reused . | . . . Traps Extracted . | . . . Installed . | . . . Triggered . | . . . Machines | -11 -10 -9 ---------- Run | Scr Mat Mat Machines Disabled 1 | . 1 . Max in Single Turn 1 | . 1 . Machines Sabotaged . | . . . Garrisons Compromised . | . . . Overloaded Fab Kills . | . . . Fab Network Shutdowns . | . . . Hacking | -11 -10 -9 --------- Run | Scr Mat Mat Machines Accessed 6 | . 5 1 Terminals 5 | . 4 1 Fabricators . | . . . Repair Stations . | . . . Recycling Units 1 | . 1 . Scanalyzers . | . . . Garrison Access . | . . . Total Hacks 11 | . 9 2 Successful 5 | . 5 . Failed 6 | . 4 2 Catastrophic 1 | . . 1 Database Lockouts . | . . . Manual . | . . . Terminals 10 | . 8 2 Fabricators . | . . . Repair Stations . | . . . Recycling Units 1 | . 1 . Scanalyzers . | . . . Garrison Access . | . . . Terminal Hacks 4 | . 4 . Record 1 | . 1 . Locate Traps 2 | . 2 . Dispatch Records 1 | . 1 . Fabricator Hacks . | . . . Repair Station Hacks . | . . . Recycling Unit Hacks 1 | . 1 . Report Inventory 1 | . 1 . Scanalyzer . | . . . Garrison Access Hacks . | . . . Unauthorized Hacks . | . . . Terminals . | . . . Fabricators . | . . . Repair Stations . | . . . Recycling Units . | . . . Scanalyzers . | . . . Garrison Access . | . . . Data Cores Recovered . | . . . Used . | . . . Hacking Detections 4 | . 3 1 Full Trace Events 2 | . 1 1 Feedback Events . | . . . Feedback Blocked . | . . . Robot Schematics Acquired . | . . . Robots Built . | . . . Matter . | . . . Time . | . . . Total Robot Build Rating . | . . . Part Schematics Acquired . | . . . Parts Built . | . . . Matter . | . . . Time . | . . . Total Part Build Rating . | . . . Parts Repaired . | . . . Time . | . . . Parts Recycled . | . . . Recycled Matter . | . . . Retrieved Matter . | . . . Retrieved Components . | . . . Parts Scanalyzed . | . . . Part Schematics Acquired . | . . . Parts Damaged . | . . . Bothacking | -11 -10 -9 ------------ Run | Scr Mat Mat Used RIF Installer . | . . . Robots Hacked . | . . . Non-combat . | . . . Combat . | . . . Robot Hacks Applied . | . . . Relay Couplers Released . | . . . Robots Rewired . | . . . Allies Hacked . | . . . Hacks Repelled . | . . . Allies | -11 -10 -9 -------- Run | Scr Mat Mat Total Allies . | . . . Largest Group . | . . . Highest-Rated Group . | . . . Highest-Rated Ally . | . . . Total Orders . | . . . Ally Attacks . | . . . Total Damage . | . . . Kills . | . . . Allies Corrupted . | . . . Allies Melted . | . . . Intel | -11 -10 -9 ------- Run | Scr Mat Mat Robot Analysis Total . | . . . Derelict Logs Recovered . | . . . Drone Launches . | . . . Drone Recoveries . | . . . Exploration | -11 -10 -9 ------------- Run | Scr Mat Mat Turns Passed 1255 | 61 931 263 Spaces Moved 731 | 41 600 90 Core 26 | 17 . 9 Treads . | . . . Legs 705 | 24 600 81 Wheels . | . . . Hover . | . . . Flight . | . . . Fastest Speed 50 | 50 120 150 Average Speed 125 | 112 120 167 Slowest Speed 350 | 150 120 350 Overloaded Moves . | . . . Propulsion Burnouts . | . . . Robots Hopped . | . . . Cave-ins Triggered . | . . . Exploration Rate (%) 37 | 4 98 11 Regions Visited 2 Branch Regions . Pre-discovered Areas . | . . . Known Exits Taken . | . . . Unknown Exits Taken 2 | 1 1 . Scrap Searched . | . . . Spaces Dug . | . . . Terrain Destroyed 13 | . . 13 Melee . | . . . Projectile . | . . . AOE 13 | . . 13 Terrain Rammed . | . . . Walls Destroyed . | . . . Machines Disabled . | . . . Actions | -11 -10 -9 --------- Run | Scr Mat Mat Total 922 | 55 719 148 Wait 22 | . 22 . Move 729 | 40 599 90 Hop . | . . . Pick Up 39 | 8 22 9 Fast Attach . | . . . Attach 23 | 6 3 14 Detach . | . . . Swap 12 | 1 9 2 Drop 13 | . 11 2 Fire 84 | . 53 31 Melee . | . . . Ram . | . . . Kick . | . . . Crush . | . . . Escape Stasis . | . . . Rewire . | . . . Trap . | . . . Miscellaneous . | . . . Route ------- -11/Scrapyard -10/Materials (discovered 4 exits: *Mat x2 / [*Min x2]) -9/Materials (discovered 1 exit: [*Min]) History --------- Turn | Location | Event 34 | -11/Scrapyard | Discovered new exit (range 14) 62 | -11/Scrapyard | Entered Materials 316 | -10/Materials | Build established: Mutant 328 | -10/Materials | Discovered new exit (range 16) 552 | -10/Materials | Discovered new exit (range 11) 726 | -10/Materials | Discovered new exit (range 8) 925 | -10/Materials | Discovered new exit (range 15) 993 | -10/Materials | Entered another Materials area 993 | -9/Materials | Evolved 2 slots: Power x1, Utility x1 1158 | -9/Materials | Discovered new exit (range 14) 1216 | -9/Materials | Core integrity fell below 50% 1246 | -9/Materials | Core integrity fell below 20% 1256 | -9/Materials | Destroyed by G-34 Mercenary with Small Laser Last Messages --------------- K-01 Serf collects debris. U-05 Engineer lays Concrete. Sml. Laser destroyed. U-05 Engineer lays Concrete. K-01 Serf collects debris. U-05 Engineer lays Concrete. EM Pulse Gun destroyed. K-01 Serf collects debris. U-05 Engineer lays Concrete. R-06 Scavenger collects Med. Matter Pod. U-05 Engineer lays Concrete. K-01 Serf collects debris. U-05 Engineer lays Concrete. K-01 Serf collects debris. U-05 Engineer lays Concrete. K-01 Serf collects debris. U-05 Engineer builds a Wall. U-05 Engineer lays Concrete. G1IXOMVZ>J9SJ/MMRN> X0M=MM4IWPXI3I,IO8 U-05 Engineer lays Concrete. Map ----- +----------------------------------------------------+ | ??????????????????????# #?????????????????????? | | ??????????????????????# ###???????????????????? | | ??????????????????????+ ????????????????????? | | ??????????????????????# #?????????????????????? | | ??????????????????????# #??????????? =! ?????? | | ??????????????????????# #??????????# =! ????? | | ??????????????????????# #??????????# = ????? | | ??????????????????????# #?????????? ????? | | ??????????????????????# #?????????? ????? | | ??????????????????????# #??????????? ?????? | | ??????????????????????# #??????????? ?????? | | ??????????????????????# #??????????? ?????? | | ??????????????????????# #???????????# #?????? | | ?????????########?????# ############# #?????? | | ?????????# #?????# # # #?????? | | ?????????# """ #?????# # """"""" # #?????? | | ?????????# """ ####### # """"""" # ##????? | | ?????????# """ + + """"""" # +????? | | ?????????# ######### """"""" # #?????? | | ?????????# #######?# """"""" !/ #?????? | | ?????????####+### #?# # #?????? | | ?????????# #?#############% ##????? | | ?????????# ########## % ! ##### | | ?????????# % | | ?????????########a g ^^ | | ????????????????# @ g T #% | | ????????????????# " """" ##### | | ????????????????# """"""""" ###+###????? | | ????????????????# """ """ #??????????? | | ??????????????? # "????????? | | ????????????? ! "Y???????? | | ???????????? %! ""???????? | | ????????????##?####+########## ???????? | | ?????????????????????????????# ### """??????? | | ?????????????????????????????# #?? ""???????? | | ?????????????????????????????# #???"????????? | | ?????????????????????????????# #????????????? | | ?????????????????????????????# #????????????? | | ?????????????????????????????# ?????????????? | | ?????????????????????????????# ?????????????? | | ?????????????????????????????# ??????????????? | | ?????????????????????????????# ??????????????? | | ??????????????????????????????? ??????????????? | | ??????????????????????????????????????????????? | | ??????????????????????????????????????????????? | | ??????????????????????????????????????????????? | | ??????????????????????????????????????????????? | | ??????????????????????????????????????????????? | | ??????????????????????????????????????????????? | | ??????????????????????????????????????????????? | +----------------------------------------------------+ Best States ------------- Heat Dissipation 42 Energy Generation 19 Energy Capacity 400 Matter Stores 300 Matter Capacity 300 Sight Range 16 Terrain Scan Density 10 Armor Coverage 150 Evasion (%) 50 Armor Integrity Analysis 33 Item Schematics ----------------- None Robot Schematics ------------------ None Fabricated ------------ Nothing Alien Tech Used ----------------- None Achievements -------------- None Challenges ------------ None Game ------ Seed PhasingReactiveFirepult Manual? 0 Play Time 00:24:11 Cumulative 6.3 hours Start 2020.11.05 @ 16:50:46 End 2020.11.07 @ 10:38:05 Sessions 5 Manual Loads 0 Difficulty Rogue Special Mode None Game No. 9 Rogue 8 Adventurer 1 Explorer 0 Win Type - Total 0 Types 0/0/0/0/0/0/0/0/0 Lore% 4 Gallery% 12 Achievement% 6 Wizard Run 0 Options --------- ASCII 0 Keyboard 0 Movement Vi Keybinds 1 Fullscreen 2 Font 18/Terminus Map View 76x50 Tactical HUD 0 Map Filters NONE Filters NONE Steam 1 RUN: f0a7fca3-cb5e-48b1-8d1a-a54137cd2947